lending/lending_fUSD_20240621
["ID","MTS","AMOUNT","RATE_DAILY","PERIOD"]
[330110002,1718994660367,-855.47,0.00022739,4]
[330110003,1718994660376,-500.0,0.00022739,4]
[330110004,1718994660385,-522.98,0.00022739,4]
[330110005,1718994660395,-500.0,0.00022739,4]
[330110006,1718994660404,-500.0,0.00022739,4]
[330110007,1718994660414,-506.07,0.00022739,4]
[330110008,1718994660423,-2894.14,0.00022739,4]
[330110009,1718994660433,-433.12,0.00022739,4]
[330110010,1718994660444,-850.93,0.00022739,4]
[330110011,1718994660454,-151.0,0.00022739,7]
[330110012,1718994660464,-500.0,0.00022739,4]
[330110013,1718994660473,-1404.81,0.00022739,4]
[330110014,1718994660485,-641.99,0.00022739,4]
[330110015,1718994660495,-5352.95,0.00022739,4]
[330110016,1718994660506,-1423.28,0.00022739,4]
[330110017,1718994660517,-763.88,0.00022739,4]
[330110018,1718994660526,-2138.89,0.00022739,4]
[330110019,1718994660535,-500.0,0.00022739,4]
[330110020,1718994660546,-500.0,0.00022739,4]
[330110021,1718994660555,-4411.69,0.00022739,4]
[330110022,1718994660564,-1139.1,0.00022739,4]
[330110023,1718994660574,-1638.75,0.00022739,4]
[330110024,1718994660584,-500.0,0.00022739,4]
[330110025,1718994660594,-500.0,0.00022739,4]
[330110026,1718994660604,-4773.76,0.00022739,4]
[330110027,1718994660614,-500.0,0.00022739,4]
[330110028,1718994660623,-2790.61,0.00022739,4]
[330110029,1718994660633,-565.08,0.00022739,4]
[330110030,1718994660644,-500.0,0.00022739,4]
[330110031,1718994660653,-500.0,0.00022739,4]
[330110032,1718994660662,-500.0,0.00022739,4]
[330110033,1718994660670,-500.0,0.00022739,4]
[330110034,1718994660680,-500.0,0.00022739,4]
[330110035,1718994660690,-717.18494108,0.00022739,4]
[330110036,1718994660702,-16182.36505892,0.00022739,4]
[330110037,1718994660712,-4282.0,0.00022739,4]
[330110038,1718994660725,-500.0,0.00022739,4]
[330110039,1718994660735,-2013.12,0.00022739,4]
[330110040,1718994660746,-500.0,0.00022739,4]
[330110041,1718994660757,-3549.33,0.00022739,4]
[330110042,1718994660767,-904.02,0.00022739,4]
[330110043,1718994660777,-3218.79,0.00022739,4]
[330110044,1718994660787,-2875.01,0.00022739,4]
[330110045,1718994660796,-500.0,0.00022739,4]
[330110046,1718994660808,-616.52,0.00022739,4]
[330110047,1718994660819,-500.0,0.00022739,4]
[330110048,1718994660830,-2902.84,0.00022739,4]
[330110049,1718994660842,-500.0,0.00022739,4]
[330110050,1718994660853,-780.75,0.00022739,4]
[330110051,1718994660863,-1791.53,0.00022739,4]
[330110052,1718994660873,-1411.87,0.00022739,4]
[330110053,1718994660882,-500.0,0.00022739,4]
[330110054,1718994660895,-500.0,0.00022739,4]
[330110055,1718994660905,-500.0,0.00022739,4]
[330110056,1718994660914,-500.0,0.00022739,4]
[330110057,1718994660923,-3002.99,0.00022739,4]
[330110058,1718994660933,-500.0,0.00022739,4]
[330110059,1718994660942,-500.0,0.00022739,4]
[330110060,1718994660951,-1384.08,0.00022739,4]
[330110061,1718994660960,-3005.48,0.00022739,4]
[330110062,1718994660970,-500.0,0.00022739,4]
[330110063,1718994660979,-500.0,0.00022739,4]
[330110064,1718994660989,-500.0,0.00022739,4]
[330110065,1718994660997,-1186.06,0.00022739,4]
[330110066,1718994661007,-500.0,0.00022739,4]
[330110067,1718994661017,-500.0,0.00022739,4]
[330110068,1718994661026,-500.0,0.00022739,4]
[330110069,1718994661036,-1232.59,0.00022739,4]
[330110070,1718994661045,-500.0,0.00022739,4]
[330110071,1718994661054,-500.0,0.00022739,4]
[330110072,1718994661063,-500.0,0.00022739,4]
[330110073,1718994661072,-784.87,0.00022739,4]
[330110074,1718994661082,-1251.38,0.00022739,4]
[330110075,1718994661093,-736.89,0.00022739,4]
[330110076,1718994661102,-1544.52,0.00022739,4]
[330110077,1718994661112,-500.0,0.00022739,4]
[330110078,1718994661121,-3188.53,0.00022739,4]
[330110079,1718994661130,-976.47,0.00022739,4]
[330110080,1718994661141,-500.0,0.00022739,4]
[330110081,1718994661150,-427.91022529,0.00022739,4]
[330110082,1718994661159,-500.0,0.00022739,4]
[330110083,1718994661168,-9643.68,0.00022739,4]
[330110084,1718994661177,-500.0,0.00022739,4]
[330110085,1718994661187,-7938.82,0.00022739,4]
[330110086,1718994661196,-1984.59,0.00022739,4]
[330110087,1718994661206,-1829.21,0.00022739,4]
[330110088,1718994661215,-1495.33,0.00022739,4]
[330110089,1718994661224,-534.17,0.00022739,4]
[330110090,1718994661233,-151.0,0.00022739,7]
[330110091,1718994661242,-2213.03,0.00022739,4]
[330110092,1718994661252,-500.0,0.00022739,4]
[330110093,1718994661261,-4281.91,0.00022739,4]
[330110094,1718994661271,-744.32,0.00022739,4]
[330110095,1718994661281,-151.0,0.00022739,7]
[330110096,1718994661290,-1781.59,0.00022739,4]
[330110097,1718994661299,-659.0,0.00022739,4]
[330110098,1718994661309,-4995.42,0.00022739,4]
[330110099,1718994661319,-728.88,0.00022739,4]
[330110100,1718994661329,-500.0,0.00022739,4]
[330110101,1718994661340,-500.0,0.00022739,4]
[330110102,1718994661350,-1435.08,0.00022739,4]
[330110103,1718994661361,-703.17973,0.00022739,7]
[330110104,1718994661370,-2360.25,0.00022739,4]
[330110105,1718994661379,-552.25,0.00022739,4]
[330110106,1718994661388,-500.0,0.00022739,4]
[330110107,1718994661400,-3124.7,0.00022739,4]
[330110108,1718994661408,-500.0,0.00022739,4]
[330110109,1718994661417,-6875.73,0.00022739,4]
[330110110,1718994661429,-703.17973,0.00022739,7]
[330110111,1718994661440,-2825.01,0.00022739,4]
[330110112,1718994661449,-500.0,0.00022739,4]
[330110113,1718994661458,-500.0,0.00022739,4]
[330110114,1718994661468,-728.52,0.00022739,4]
[330110115,1718994661477,-500.0,0.00022739,4]
[330110116,1718994661486,-872.48,0.00022739,4]
[330110117,1718994661495,-1182.31,0.00022739,4]
[330110118,1718994661504,-831.42,0.00022739,4]
[330110119,1718994661513,-500.0,0.00022739,4]
[330110120,1718994661524,-1544.88,0.00022739,4]
[330110121,1718994661533,-500.0,0.00022739,4]
[330110122,1718994661542,-500.0,0.00022739,4]
[330110123,1718994661552,-846.28963313,0.00022739,4]
[330110124,1718994661566,-211.66036687,0.00022739,4]
[330110125,1718994661576,-151.0,0.00022739,7]
[330110126,1718994661585,-528.6,0.00022739,4]
[330110127,1718994661594,-3776.39,0.00022739,4]
[330110128,1718994661604,-1404.94,0.00022739,4]
[330110129,1718994661614,-500.0,0.00022739,4]
[330110130,1718994661623,-250.0,0.00022739,4]
[330110131,1718994661632,-79.30363312,0.00022739,4]
[330110132,1718994661646,-420.69636688,0.00022739,4]
[330110133,1718994661655,-795.46207,0.00022739,4]
[330110134,1718994661667,-18.11793,0.00022739,4]
[330110135,1718994661676,-279.087071,0.00022739,4]
[330110136,1718994661687,-160.352929,0.00022739,4]
[330110137,1718994661696,-114.993071,0.00022739,4]
[330110138,1718994661835,-256.89893274,0.00022739,4]
[330110139,1718994661846,-413.72799626,0.00022739,4]
[330110140,1718994661856,-1998.78,0.00022739,4]
[330110141,1718994661865,-838.44,0.00022739,4]
[330110142,1718994661874,-500.0,0.00022739,4]
[330110143,1718994661883,-2143.9,0.00022739,4]
[330110144,1718994661897,-266.34390404,0.00022739,4]
[330110145,1718994661908,-233.65609596,0.00022739,4]
[330110146,1718994661918,-500.0,0.00022739,4]
[330110147,1718994661928,-500.0,0.00022739,2]
[330110148,1718994661937,-820.71,0.00022739,4]
[330110149,1718994661946,-1086.05,0.00022739,4]
[330110150,1718994661955,-1297.03,0.00022739,4]
[330110151,1718994661965,-469.00140404,0.00022739,4]
[330110152,1718994661976,-30.99859596,0.00022739,4]
[330110153,1718994661985,-405.15721368,0.00022739,4]
[330110154,1718994661996,-820.84478473,0.00022739,4]
[330110155,1718994662007,-956.08522186,0.00022739,4]
[330110156,1718994662018,-171.47277973,0.00022739,4]
[330110157,1718994662028,-408.98362582,0.00022739,4]
[330110158,1718994662039,-137.88637418,0.00022739,4]
[330110159,1718994662048,-782.33,0.00022739,4]
[330110160,1718994662057,-500.0,0.00022739,4]
[330110161,1718994662066,-671.35,0.00022739,4]
[330110162,1718994662075,-903.26,0.00022739,4]
[330110163,1718994662085,-500.0,0.00022739,4]
[330110164,1718994662096,-4182.69595347,0.00022739,4]
[330110165,1718994662107,-2019.64900019,0.00022739,4]
[330110166,1718994662500,-500.0,0.00021917,4]
[330110167,1718994662509,-188.56235155,0.00022191,4]
[330110168,1718994662564,-236.79764845,0.00022191,4]
[330110169,1718994662574,-283.68364439,0.00022739,4]
[330110170,1718994662585,-1367.63338753,0.00022739,4]
[330110171,1718994662596,-4914.28801442,0.00022739,4]
[330110172,1718994662606,-500.0,0.00022739,4]
[330110173,1718994662617,-500.0,0.00022739,4]
[330110174,1718994662626,-500.0,0.00022739,4]
[330110175,1718994662635,-957.52,0.00022739,4]
[330110176,1718994662648,-500.0,0.00022739,4]
[330110177,1718994662657,-1839.19,0.00022739,4]
[330110178,1718994662666,-1912.04,0.00022739,4]
[330110179,1718994662675,-500.0,0.00022739,4]
[330110180,1718994662684,-870.59,0.00022739,4]
[330110181,1718994662694,-2400.3,0.00022739,4]
[330110182,1718994662703,-500.0,0.00022739,4]
[330110183,1718994662712,-493.35375664,0.00022742,2]
[330110184,1718994662723,-4426.46196943,0.00022754,2]
[330110185,1718994662734,-163.97131272,0.00022755,2]
[330110186,1718994662743,-1227.05,0.0002278,2]
[330110187,1718994662752,-1313.28,0.000228,2]
[330110188,1718994662765,-169.18147184,0.00022869,2]
[330110189,1718994662774,-4426.46196943,0.00022869,2]
[330110190,1718994662785,-183.71293938,0.0002287,2]
[330110191,1718994662794,-300.84937547,0.0002287,2]
[330110192,1718994662807,-163.97131272,0.0002287,2]
[330110193,1718994662818,-299.04342174,0.0002287,2]
[330110194,1718994662829,-493.35375664,0.0002287,2]
[330110195,1718994662839,-155.0,0.00022899,2]
[330110196,1718994662848,-490.0,0.000229,5]
[330110197,1718994662858,-190.0,0.000229,5]
[330110198,1718994662867,-3200.0,0.0002295,3]
[330110199,1718994662877,-2712.23886877,0.00022967,5]
[330110200,1718994662887,-56846.47017904,0.00022967,5]
[330110201,1718994662902,-394.58101345,0.00022967,5]
[330110202,1718994662914,-5748.17421115,0.00022967,5]
[330110203,1718994662926,-11260.56224255,0.00022967,5]
[330110204,1718994663114,-846.50599989,0.00022967,5]
[330110205,1718994663126,-7527.52000004,0.00022967,5]
[330110206,1718994663139,-360.38286195,0.00022967,5]
[330110207,1718994663154,-5531.82852246,0.00022967,5]
[330110208,1718994663166,-988.0,0.00022967,5]
[330110209,1718994663177,-31572.06021132,0.00022967,5]
[330110210,1718994663580,-1262.77288771,0.00021453,2]
[330110211,1718994663590,-155.0,0.00021903,2]
[330110212,1718994663601,-500.0,0.00021917,4]
[330110213,1718994663612,-13.06057462,0.00022191,4]
[330110214,1718994663624,-486.93942538,0.00022191,4]
[330110215,1718994663633,-151.0,0.00022465,7]
[330110216,1718994663644,-16280.95963135,0.00022967,5]
[330110217,1718994663655,-883.07000001,0.00022967,5]
[330110218,1718994663666,-1504.37069116,0.00022967,5]
[330110219,1718994663677,-449.25726282,0.00022967,5]
[330110220,1718994663691,-5987.01390136,0.00022967,5]
[330110221,1718994663702,-35214.24065056,0.00022967,5]
[330110222,1718994663714,-1829.7458757,0.00022967,5]
[330110223,1718994663853,-500.0,0.00022465,4]
[330110224,1718994663863,-3074.65,0.00022967,5]
[330110225,1718994663875,-15532.74296992,0.00022967,5]
[330110226,1718994663886,-667.2379924,0.00022967,5]
[330110227,1718994664010,-1800.44920986,0.00022967,5]
[330110228,1718994664035,-918.5677849,0.00022967,5]
[330110229,1718994664047,-1336.47804719,0.00022967,5]
[330110230,1718994664059,-445.62000001,0.00022967,5]
[330110231,1718994664070,-477.47355398,0.00022967,5]
[330110232,1718994664082,-617.95550003,0.00022967,5]
[330110233,1718994681691,197.11,0.00021688,30]
[330110234,1718994800314,918.80279174,0.00012361,2]
[330110235,1718994813294,1627.6013862,0.00012361,2]
[330110236,1718994819463,158.80388924,0.00012361,2]
[330110237,1718994820428,393.33113171,0.00012361,2]
[330110238,1718994820558,241.65854131,0.000101,2]
[330110239,1718994820952,241.65854131,0.000101,2]
[330110240,1718994821655,2055.98708824,0.00012361,2]
[330110241,1718994822263,271.48274314,0.00012361,2]
[330110242,1718994826227,378.479245,0.00012361,2]
[330110243,1718994844614,290.13912195,0.00012361,2]
[330110244,1718994845301,2266.50196297,0.000118,2]
[330110245,1718994845326,7704.92250455,0.000118,2]
[330110246,1718994845353,10000.0,0.000118,2]
[330110247,1718994845376,10000.0,0.000118,2]
[330110248,1718994845398,10000.0,0.000118,2]
[330110249,1718994845421,10000.0,0.000118,2]
[330110250,1718994845444,10000.0,0.000118,2]
[330110251,1718994845468,3361.54964159,0.000118,2]
[330110252,1718994850782,6638.45035841,0.00012,2]
[330110253,1718994850812,2544.39669047,0.00012,2]
[330110254,1718994932344,7455.60330953,0.00012,2]
[330110255,1718994932371,6920.82610546,0.00012,2]
[330110256,1718994937665,263.86585492,0.00015,14]
[330110257,1718994941815,1133.53475068,0.00012299,2]
[330110258,1718994963260,219.04401576,0.00012,2]
[330110259,1718994974633,163.5767579,0.00012299,2]
[330110260,1718994983822,323.22453476,0.00012299,2]
[330110262,1718995001913,201.0960716,0.00025,120]
[330110263,1718995027530,510.82637641,0.00012299,2]
[330110264,1718995079374,720.22193745,0.00012299,2]
[330110265,1718995106724,8.74552158,0.00012299,2]
[330110266,1718995106759,170.42831584,0.00012299,2]
[330110267,1718995119138,241.65854131,0.000101,2]
[330110268,1718995174303,2712.19140625,0.00012242,2]
[330110269,1718995176836,1627.6013862,0.00012299,2]
[330110270,1718995217376,158.01350582,0.00012299,2]
[330110271,1718995220340,1627.6013862,0.00012242,2]
[330110272,1718995230570,273.46,0.0002273,30]
[330110273,1718995287038,180.68,0.00019758,30]
[330110274,1718995290259,225.9334572,0.00012299,2]
[330110276,1718995297327,413.48779474,0.00012299,2]
[330110277,1718995349933,150.5,0.00022729,30]
[330110278,1718995350422,150.5,0.00022719,30]
[330110279,1718995350892,150.5,0.00022709,30]
[330110280,1718995351412,150.5,0.00022957,30]
[330110281,1718995351911,150.5,0.00022947,30]
[330110282,1718995352433,150.5,0.00022937,30]
[330110283,1718995352952,150.5,0.00022957,30]
[330110284,1718995353548,223.82,0.00022947,30]
[330110286,1718995372864,172.02,0.00024808,120]
[330110289,1718995412625,185.2440944,0.00012299,2]
[330110291,1718995452445,720.22193745,0.00012299,2]
[330110292,1718995562373,101.61817459,0.00012299,2]
[330110293,1718995720804,-1027.52084075,0.00011097,2]
[330110294,1718995722455,-600.08054545,0.00011097,2]
[330110295,1718995770175,-720.22193745,0.00012361,2]
[330110296,1718995770204,-574.30683092,0.0001251,2]
[330110297,1718995770233,-450.0,0.0001298,2]
[330110298,1718995770256,-155.0,0.00013352,2]
[330110299,1718995770277,-304.92097551,0.00013352,2]
[330110300,1718995770300,-694.59035612,0.00014908,2]
[330110301,1718995800247,-290.25999169,0.00011097,2]
[330110314,1718995832902,-616.59989011,0.00013352,2]
[330110315,1718995832916,-599.46000008,0.00013352,2]
[330110316,1718995832928,-381.95282911,0.00013352,2]
[330110317,1718995832943,-29.5886669,0.00013352,2]
[330110318,1718995832954,-291.98506278,0.00013451,2]
[330110319,1718995832965,-101.75111906,0.00013451,2]
[330110320,1718995832977,-315.40998089,0.00013451,2]
[330110321,1718995832990,-303.0608375,0.00013451,2]
[330110322,1718995833000,-636.76641229,0.00014908,2]
[330110323,1718995833013,-181.1466144,0.00014908,2]
[330110324,1718995833023,-169.48516651,0.00015,2]
[330110325,1718995833034,-295.65522787,0.00015051,2]
[330110326,1718995833047,-419.81631495,0.00015051,2]
[330110327,1718995833058,-171.91,0.0001538,2]
[330110328,1718995833068,-150.0,0.00017233,2]
[330110329,1718995833078,-299.99,0.00017259,4]
[330110330,1718995833088,-499.99,0.0001726,2]
[330110331,1718995833098,-36.20319679,0.00017534,2]
[330110332,1718995833112,-636.46680321,0.00017534,2]
[330110333,1718995833128,-340.56819452,0.00018752,2]
[330110334,1718995833144,-277.50880542,0.00018752,2]
[330110335,1718995833158,-3842.38753006,0.00018752,2]
[330110336,1718995833167,-250.0,0.00019176,2]
[330110337,1718995833177,-3082.05,0.0001973,2]
[330110338,1718995833187,-250.0,0.00019779,2]
[330110339,1718995833199,-250.0,0.00019779,2]
[330110340,1718995833209,-672.67,0.00019798,2]
[330110341,1718995833219,-18724.84,0.0001981,2]
[330110342,1718995833228,-1701.42,0.00019827,2]
[330110343,1718995833237,-150.15,0.00019828,2]
[330110344,1718995833248,-1035.68475092,0.00019842,2]
[330110345,1718995833260,-310.14718705,0.00019842,2]
[330110346,1718995833272,-421.55839924,0.00019842,2]
[330110347,1718995833284,-410.02966279,0.00019842,2]
[330110348,1718995833294,-94.66454997,0.00019846,2]
[330110349,1718995833306,-77.35545003,0.00019846,2]
[330110350,1718995833316,-595.57,0.00019846,2]
[330110351,1718995833326,-209.40916519,0.00019891,2]
[330110352,1718995833339,-735.06296937,0.00019891,2]
[330110356,1718995840028,-180.91246008,0.00013451,2]
[330110357,1718995840039,-155.97353947,0.00013451,2]
[330110358,1718995840050,-55.52786544,0.00019891,2]
[330110359,1718995840061,-150.15,0.00019914,2]
[330110360,1718995840072,-326.69444584,0.0002,2]
[330110361,1718995840082,-150.15,0.0002,2]
[330110362,1718995840093,-150.15,0.00020087,2]
[330110363,1718995840103,-150.15,0.00020173,2]
[330110364,1718995840113,-150.15,0.00020259,2]
[330110365,1718995840123,-150.15,0.00020345,2]
[330110366,1718995840137,-150.15,0.00020431,2]
[330110367,1718995840149,-1030.98382353,0.00020501,2]
[330110368,1718995840160,-150.15,0.00020517,2]
[330110369,1718995840170,-150.15,0.00020603,2]
[330110370,1718995840180,-150.15,0.00020689,2]
[330110371,1718995840190,-150.15,0.00020775,2]
[330110372,1718995840199,-150.15,0.00020861,2]
[330110373,1718995840212,-85.31304246,0.00020979,2]
[330110375,1718995840657,-114.12695754,0.00020979,2]
[330110377,1718995840668,-3271.17585529,0.0002106,2]
[330110379,1718995840678,-528.92655435,0.00021069,2]
[330110381,1718995840694,-9439.8668366,0.0002107,2]
[330110382,1718995840706,-560.1331634,0.0002107,2]
[330110383,1718995840716,-156.4928366,0.00021309,2]
[330110384,1718995840728,-12.8671634,0.00021309,2]
[330110385,1718995840739,-180.0,0.00021557,2]
[330110386,1718995840749,-154.2,0.00021644,2]
[330110387,1718995840759,-813.28975484,0.00021706,2]
[330110388,1718995840769,-78751.04642845,0.00021706,2]
[330110389,1718995840782,-7911.35277425,0.00021706,2]
[330110390,1718995841198,-3217.47124158,0.00021706,2]
[330110391,1718995841213,-61808.56517807,0.00021706,2]
[330110392,1718995841223,-813.28975479,0.00021717,2]
[330110393,1718995841232,-813.28975479,0.00021728,2]
[330110394,1718995841242,-813.28975479,0.00021739,2]
[330110395,1718995841251,-813.28975479,0.0002175,2]
[330110396,1718995841261,-1327.50584646,0.00021806,2]
[330110397,1718995841271,-353.29860112,0.00021806,2]
[330110398,1718995841280,-334.76566712,0.00021806,2]
[330110399,1718995841290,-6023.3133,0.00021807,2]
[330110400,1718995841300,-306.82,0.00021808,3]
[330110401,1718995841309,-512.7758,0.00021817,2]
[330110402,1718995841319,-4287.7009,0.00021817,2]
[330110403,1718995841328,-335.65745191,0.00021824,2]
[330110404,1718995841337,-14081.0,0.00021825,2]
[330110405,1718995841347,-210.20765487,0.00021896,2]
[330110406,1718995841356,-343.3,0.000219,4]
[330110407,1718995841365,-155.0,0.00021906,2]
[330110408,1718995841374,-60025.76702503,0.00021906,2]
[330110409,1718995841386,-11784.06453866,0.00021906,2]
[330110410,1718995841398,-1777.7292,0.00021906,2]
[330110411,1718995841409,-710.26,0.00021906,2]
[330110412,1718995841420,-25588.92496355,0.00021906,2]
[330110413,1718995841433,-12227.38477191,0.00021906,2]
[330110414,1718995841444,-772.50179306,0.00021906,2]
[330110415,1718995841456,-760.14841555,0.00021906,2]
[330110419,1718995845060,-732.51196725,0.00013351,2]
[330110421,1718995845072,-401.38602258,0.00013351,2]
[330110424,1718995845088,-3309.83103924,0.00013351,2]
[330110426,1718995845097,-290.25999169,0.00013451,2]
[330110429,1718995845107,-813.28975479,0.00021762,2]
[330110431,1718995845118,-2740.22787428,0.00021906,2]
[330110434,1718995845133,-2421.6,0.00021906,2]
[330110436,1718995845144,-2385.14,0.00021906,2]
[330110439,1718995845163,-707.3898016,0.00021906,2]
[330110444,1718995845512,-2992.42685369,0.00021906,2]
[330110446,1718995845523,-21819.99370451,0.00021906,2]
[330110448,1718995845534,-3491.09720002,0.00021906,2]
[330110459,1718995846767,-4443.72902907,0.00016571,2]
[330110461,1718995846777,-64927.59534643,0.00021906,2]
[330110462,1718995846788,-1257.69036637,0.00021906,2]
[330110473,1718995916829,165.62,0.00020669,30]
[330110495,1718996365367,-296.30777465,0.00011097,2]
[330110496,1718996391435,-155.47278461,0.00011097,2]
[330110497,1718996416747,-780.92728097,0.00011097,2]
[330110498,1718996446460,-819.5901842,0.00011097,2]
[330110501,1718996479277,-180.94750062,0.00011097,2]
[330110502,1718996481786,-219.28826757,0.00011097,2]
[330110503,1718996488248,-290.25999169,0.00011097,2]
[330110505,1718996542191,-376.47766364,0.00011097,2]
[330110507,1718996571616,-1087.72175285,0.00011097,2]
[330110508,1718996592846,978.153875,0.0001104,2]
[330110509,1718996595496,151.81,0.00019357,30]
[330110510,1718996612343,4443.72902907,0.00010997,2]
[330110512,1718996662293,180.94750062,0.00010997,2]
[330110513,1718996670715,421.36858621,0.00010997,2]
[330110515,1718996752572,18449.58628171,0.00010997,2]
[330110516,1718996763334,180.94750062,0.00010997,2]
[330110517,1718996883321,200.72608025,0.00010997,2]
[330110522,1718996906471,720.22193745,0.00011002,2]
[330110540,1718997034572,-150.0,0.00011096,2]
[330110543,1718997034582,-500.0,0.00011097,2]
[330110545,1718997034592,-500.0,0.00011097,2]
[330110547,1718997034602,-500.0,0.00011097,2]
[330110549,1718997034612,-500.0,0.00011097,2]
[330110552,1718997034622,-500.0,0.00011097,2]
[330110554,1718997034632,-500.0,0.00011097,2]
[330110556,1718997034643,-705.0,0.00011097,2]
[330110557,1718997034653,-500.0,0.00011097,2]
[330110558,1718997034663,-500.0,0.00011097,2]
[330110559,1718997034674,-500.0,0.00011097,2]
[330110561,1718997034684,-500.0,0.00011097,2]
[330110563,1718997034695,-500.0,0.00011097,2]
[330110565,1718997034705,-500.0,0.00011097,2]
[330110567,1718997034714,-500.0,0.00011097,2]
[330110569,1718997034724,-500.0,0.00011097,2]
[330110571,1718997034734,-986.0,0.00011097,2]
[330110573,1718997034743,-456.30414683,0.00011097,2]
[330110575,1718997034753,-155.0,0.00011199,2]
[330110576,1718997034763,-155.0,0.00012148,2]
[330110577,1718997034772,-2196.89348564,0.00012359,2]
[330110578,1718997034782,-720.22193745,0.00013251,2]
[330110579,1718997034791,-1718.94955207,0.00013252,2]
[330110580,1718997034804,-259.94301548,0.00013252,2]
[330110581,1718997034816,-3.28073245,0.00013252,2]
[330110582,1718997034826,-169.48516651,0.00015,2]
[330110583,1718997034835,-558.22753919,0.00015,2]
[330110584,1718997034847,-1311.4177585,0.00015,2]
[330110585,1718997034859,-6834.21470231,0.00015,2]
[330110586,1718997034870,-715.47154282,0.00015051,2]
[330110587,1718997034879,-171.91,0.00015302,2]
[330110588,1718997034889,-187.52,0.00015601,2]
[330110589,1718997034898,-161.95,0.00015724,2]
[330110590,1718997034908,-689.71,0.00017323,2]
[330110591,1718997034921,-250.0,0.00019254,2]
[330110592,1718997034931,-800.0,0.00019261,2]
[330110593,1718997034940,-159.55,0.00019261,2]
[330110594,1718997034953,-166.38,0.0001932,2]
[330110595,1718997034963,-511.17,0.0001934,2]
[330110596,1718997034972,-250.0,0.00019368,2]
[330110597,1718997034982,-2000.0,0.00019411,2]
[330110598,1718997034992,-16707.07,0.00019423,2]
[330110599,1718997035001,-250.0,0.00019423,2]
[330110600,1718997035011,-783.07,0.00019531,2]
[330110601,1718997035021,-200.0,0.00019531,2]
[330110602,1718997035030,-689.71,0.00019587,2]
[330110603,1718997035040,-447.43,0.00019589,2]
[330110604,1718997035050,-447.43,0.00019643,2]
[330110605,1718997035059,-14840.145,0.00019665,2]
[330110606,1718997035068,-447.43,0.00019697,2]
[330110608,1718997035078,-3105.79028967,0.00019749,2]
[330110609,1718997035087,-447.43,0.0001975,2]
[330110611,1718997035097,-447.43,0.00019804,2]
[330110613,1718997035106,-447.43,0.00019858,2]
[330110615,1718997035115,-447.43,0.00019911,2]
[330110617,1718997035125,-447.43,0.00019965,2]
[330110619,1718997035135,-244.54839768,0.0002,2]
[330110621,1718997035144,-447.43,0.00020019,2]
[330110623,1718997035154,-447.43,0.00020073,2]
[330110625,1718997035168,-447.43,0.00020126,2]
[330110627,1718997035178,-447.43,0.0002018,2]
[330110628,1718997035187,-447.43,0.00020234,2]
[330110630,1718997035197,-447.43,0.00020288,2]
[330110631,1718997035206,-447.43,0.00020341,2]
[330110632,1718997035215,-447.43,0.00020395,2]
[330110633,1718997035224,-163.45,0.00020399,2]
[330110634,1718997035234,-447.43,0.00020449,2]
[330110635,1718997035243,-447.43,0.00020502,2]
[330110636,1718997035253,-447.43,0.00020556,2]
[330110637,1718997035263,-447.43,0.0002061,2]
[330110638,1718997035272,-482.76727412,0.00020895,2]
[330110639,1718997035282,-1262.77288771,0.00020896,2]
[330110640,1718997035291,-5000.0,0.00020967,2]
[330110641,1718997035300,-5000.0,0.00020967,2]
[330110642,1718997035310,-300.0,0.00020985,2]
[330110643,1718997035319,-1250.0,0.00021,2]
[330110644,1718997035328,-26524.00308888,0.00021,2]